bitfinex/quotes_BTCUSD_20240715
["timestamp","ask_amount","ask_price","bid_price","bid_amount"]
[1721049576037,0.08393,62901.0,62900.0,1.13979]
[1721049576234,0.00083,62901.0,62900.0,1.13979]
[1721049576450,0.00083,62901.0,62900.0,1.12579]
[1721049576866,0.00083,62901.0,62900.0,1.13979]
[1721049577066,0.00083,62901.0,62900.0,1.12579]
[1721049577504,0.00083,62901.0,62900.0,1.13979]
[1721049580282,0.00083,62901.0,62900.0,1.44380791]
[1721049580487,0.00083,62901.0,62900.0,2.76107387]
[1721049580690,0.00083,62901.0,62900.0,2.96107387]
[1721049581097,0.00083,62901.0,62900.0,2.82903791]
[1721049581256,0.00083,62901.0,62900.0,2.9610611]
[1721049582305,0.00083,62901.0,62900.0,3.2790261]
[1721049584370,0.00083,62901.0,62900.0,3.14700291]
[1721049584498,0.00083,62901.0,62900.0,3.27902445]
[1721049584927,0.00083,62901.0,62900.0,3.27902461]
[1721049589666,0.00083,62901.0,62900.0,3.27903209]
[1721049590020,0.00083,62901.0,62900.0,2.69616709]
[1721049590847,0.00083,62901.0,62900.0,2.56413791]
[1721049590974,0.00083,62901.0,62900.0,2.69616772]
[1721049591885,0.00083,62901.0,62900.0,2.16917291]
[1721049592285,0.00083,62901.0,62900.0,2.06917291]
[1721049592627,0.00083,62901.0,62900.0,2.16917291]
[1721049593212,0.00083,62901.0,62900.0,2.06917291]
[1721049593413,0.00083,62901.0,62900.0,1.96917291]
[1721049593619,0.13943,62901.0,62900.0,0.821825]
[1721049594021,0.13943,62901.0,62900.0,1.13979]
[1721049594988,0.13943,62901.0,62900.0,1.23979]
[1721049596723,0.00083,62901.0,62900.0,1.23979]
[1721049598126,0.11592065,62909.0,62900.0,1.23979]
[1721049598127,0.04762325,62913.0,62910.0,0.2]
[1721049598283,0.065,62923.0,62910.0,0.2]
[1721049598284,0.065,62923.0,62910.0,2.59070836]
[1721049598479,0.065,62923.0,62910.0,2.45869729]
[1721049598679,0.065,62923.0,62910.0,1.81573091]
[1721049598680,0.11392065,62918.0,62910.0,1.81573091]
[1721049598886,0.065,62923.0,62910.0,1.94774356]
[1721049599086,0.065,62923.0,62910.0,1.69273091]
[1721049599087,0.17892065,62923.0,62910.0,1.69273091]
[1721049599292,0.07313,62911.0,62910.0,1.38381691]
[1721049599905,0.07313,62911.0,62910.0,1.39781691]
[1721049600101,0.07313,62911.0,62910.0,1.38381691]
[1721049600968,0.07313,62911.0,62910.0,1.37481691]
[1721049601315,0.07313,62911.0,62910.0,1.38881691]
[1721049601519,0.07313,62911.0,62910.0,1.40281691]
[1721049601720,0.07313,62911.0,62910.0,1.38881691]
[1721049602338,0.07313,62911.0,62910.0,1.40281691]
[1721049603185,0.00833,62911.0,62910.0,1.72073091]
[1721049605641,0.00833,62911.0,62910.0,1.240699]
[1721049605846,0.15043,62911.0,62910.0,1.240699]
[1721049606628,0.15043,62911.0,62910.0,1.226699]
[1721049607673,0.26435065,62911.0,62910.0,0.794785]
[1721049607882,0.26435065,62911.0,62903.0,0.158974]
[1721049607883,0.25302065,62904.0,62903.0,0.158974]
[1721049608152,0.25302065,62904.0,62903.0,0.4929117]
[1721049609307,0.25302065,62904.0,62903.0,0.0159887]
[1721049609507,0.25302065,62904.0,62903.0,0.5069117]
[1721049611200,0.25302065,62904.0,62903.0,0.5209117]
[1721049611445,0.25302065,62904.0,62903.0,0.2029627]
[1721049611646,0.25302065,62904.0,62903.0,0.028]
[1721049611647,0.80439282,62904.0,62903.0,0.028]
[1721049611860,1.16995866,62904.0,62903.0,0.028]
[1721049612020,1.44028082,62904.0,62903.0,0.028]
[1721049612215,1.44001923,62904.0,62903.0,0.028]
[1721049612623,1.44001922,62904.0,62903.0,0.014]
[1721049612832,0.11392065,62901.0,62900.0,0.000913]
[1721049613031,0.19431393,62901.0,62900.0,0.0169032]
[1721049613269,0.19431393,62901.0,62900.0,0.159895]
[1721049613430,0.19207859,62901.0,62900.0,0.000913]
[1721049613634,0.19431393,62901.0,62900.0,0.000913]
[1721049613836,0.18235599,62901.0,62900.0,0.000913]
[1721049614684,0.26285599,62901.0,62900.0,0.000913]
[1721049615086,0.26285599,62901.0,62900.0,0.0487]
[1721049615407,0.26285599,62901.0,62900.0,0.207682]
[1721049615578,0.26285599,62901.0,62900.0,0.209682]
[1721049615911,0.05591022,62911.0,62900.0,0.37179991]
[1721049616127,0.16,62945.0,62910.0,0.24317029]
[1721049616128,0.04755078,62944.0,62910.0,0.24317029]
[1721049616316,0.16,62945.0,62944.0,1.164213]
[1721049616454,0.16,62945.0,62944.0,1.120655]
[1721049616683,0.16,62945.0,62944.0,0.476613]
[1721049617080,0.16,62945.0,62944.0,0.794355]
[1721049617285,0.16,62945.0,62944.0,1.39421491]
[1721049617488,0.16,62945.0,62944.0,1.51721491]
[1721049618256,0.16,62945.0,62944.0,1.73431491]
[1721049618593,0.16,62945.0,62944.0,1.75731491]
[1721049618802,0.16,62945.0,62944.0,2.07505691]
[1721049618945,0.16,62945.0,62944.0,2.37905691]
[1721049619365,0.16,62945.0,62944.0,2.17905691]
[1721049619567,0.16,62945.0,62944.0,1.81895691]
[1721049619805,0.16,62945.0,62944.0,2.04525691]
[1721049620182,0.16,62945.0,62944.0,2.26525691]
[1721049620382,0.16,62945.0,62944.0,2.03895691]
[1721049621055,0.16,62945.0,62944.0,1.81895691]
[1721049621418,0.16,62945.0,62944.0,1.91895691]
[1721049621620,0.16,62945.0,62944.0,2.03895691]
[1721049621823,0.1178372,62945.0,62944.0,1.91895691]
[1721049622002,0.1178372,62945.0,62944.0,2.03895691]
[1721049622796,0.1178372,62945.0,62944.0,1.91895691]
[1721049623369,0.1178372,62945.0,62944.0,1.83895691]
[1721049623569,0.1178372,62945.0,62944.0,2.72429891]
[1721049623773,0.1178372,62945.0,62944.0,2.72736244]
[1721049624072,0.1178372,62945.0,62944.0,2.78313386]
[1721049624227,0.1178372,62945.0,62944.0,2.83028473]
[1721049624428,0.1178372,62945.0,62944.0,3.17394353]
[1721049624613,0.00833,62964.0,62948.0,0.846461]
[1721049624815,0.00833,62964.0,62963.0,0.278823]
[1721049625057,0.00833,62964.0,62963.0,0.90532179]
[1721049625265,0.00833,62964.0,62963.0,2.6366345]
[1721049625437,0.00833,62964.0,62963.0,3.56116383]
[1721049625687,0.001,62969.0,62964.0,1.90141413]
[1721049625891,0.00833,62974.0,62973.0,0.42]
[1721049626134,0.00833,62974.0,62973.0,1.76058737]
[1721049626289,0.00833,62974.0,62973.0,2.90377537]
[1721049626509,0.00143,62993.0,62992.0,0.79375]
[1721049626671,0.00143,62993.0,62992.0,1.11125]
[1721049626873,0.00143,62995.0,62994.0,0.63498]
[1721049627075,0.00143,62995.0,62994.0,1.111215]
[1721049627272,0.00143,62995.0,62994.0,0.793725]
[1721049628375,0.00143,62995.0,62994.0,0.796725]
[1721049628666,1.0812,63000.0,62995.0,1.111197]
[1721049628667,1.016,63000.0,62995.0,1.111197]
[1721049628838,0.121166,62996.0,62995.0,1.111197]
[1721049629652,0.122596,62996.0,62995.0,0.793712]
[1721049629938,0.122596,62996.0,62994.0,0.001]
[1721049629939,0.00143,62995.0,62994.0,0.001]
[1721049630113,0.12143,62995.0,62994.0,0.001]
[1721049630316,0.12143,62995.0,62994.0,0.159745]
[1721049630674,0.00143,62995.0,62994.0,0.477235]
[1721049630952,0.00143,62995.0,62994.0,0.476235]
[1721049631091,0.1948091,62996.0,62995.0,0.158742]
[1721049631092,1e-08,62996.0,62995.0,0.158742]
[1721049631294,1e-08,62996.0,62995.0,0.164742]
[1721049631496,1e-08,62996.0,62995.0,0.476227]
[1721049632118,1e-08,62996.0,62995.0,0.793712]
[1721049632320,1e-08,62996.0,62995.0,1.111197]
[1721049632739,0.1309091,62996.0,62995.0,1.111197]
[1721049634209,0.1309091,62996.0,62995.0,1.116197]
[1721049634590,0.1309091,62996.0,62995.0,0.798712]
[1721049634791,0.1309091,62996.0,62995.0,0.805712]
[1721049635116,0.0751,62997.0,62996.0,0.7937]
[1721049635242,1.016,63000.0,62999.0,0.476197]
[1721049635446,1.016,63000.0,62999.0,0.793662]
[1721049635646,1.016,63000.0,62999.0,1.111127]
[1721049636273,0.158685,63018.0,62999.0,1.111127]
[1721049636274,0.5,63054.0,63027.0,1.110634]
[1721049636484,0.2753,63030.0,63021.0,0.317353]
[1721049636690,0.12,63023.0,63010.0,0.00306353]
[1721049636906,0.2753,63030.0,63006.0,0.1]
[1721049636907,0.2753,63030.0,63012.0,0.08105238]
[1721049637206,0.2753,63030.0,63013.0,0.08411591]
[1721049637438,0.12,63026.0,63018.0,0.317367]
[1721049637647,0.12,63018.0,63013.0,0.00306353]
[1721049637852,0.2646,63018.0,63017.0,0.158684]
[1721049638117,0.2646,63018.0,63011.0,0.00306353]
[1721049638118,0.12,63016.0,63011.0,0.00306353]
[1721049638439,0.12,63014.0,63013.0,0.158697]
[1721049638634,0.12,63014.0,63012.0,0.00868391]
[1721049638853,0.12,63014.0,63013.0,0.00306353]
[1721049639352,0.1446,63018.0,63013.0,0.00306353]
[1721049639592,0.1446,63018.0,63017.0,0.476061]
[1721049640038,0.1446,63018.0,63017.0,0.158687]
[1721049640263,0.1446,63018.0,63016.0,0.158689]
[1721049640492,0.1446,63018.0,63017.0,0.00306353]
[1721049640767,0.1446,63018.0,63015.0,0.00306353]
[1721049640768,0.12,63016.0,63015.0,0.00306353]
[1721049640938,0.12,63016.0,63003.0,0.317443]
[1721049640939,0.12,63009.0,63006.0,0.317428]
[1721049641142,0.12,63009.0,63008.0,0.15871]
[1721049641346,0.12,63010.0,63008.0,0.00306353]
[1721049641549,0.12,63010.0,63008.0,0.16177253]
[1721049641683,0.12,63011.0,63010.0,0.158704]
[1721049641890,0.1446,63018.0,63008.0,0.00868391]
[1721049641891,0.12,63009.0,63008.0,0.00868391]
[1721049642105,0.12,63009.0,62984.0,0.0631]
[1721049642106,0.06,63000.0,62996.0,0.158739]
[1721049642464,0.0757,62998.0,62996.0,0.158739]
[1721049642691,0.0757,62998.0,62997.0,0.00306353]
[1721049643028,0.1372,62998.0,62997.0,0.00306353]
[1721049643390,0.1372,62998.0,62997.0,0.01174744]
[1721049643391,0.1972,62998.0,62997.0,0.01174744]
[1721049643575,0.1822,62998.0,62997.0,0.00868391]
[1721049643873,0.2422,62998.0,62997.0,0.00868391]
[1721049644226,0.400935,62998.0,62997.0,0.00868391]
[1721049644878,0.1222,62998.0,62997.0,0.00868391]
[1721049645133,0.317431,63006.0,62997.0,0.00868391]
[1721049645134,0.0641,63008.0,62997.0,0.17080182]
[1721049645342,0.0641,63008.0,62998.0,0.00306353]
[1721049645542,0.0641,63008.0,62998.0,0.16179753]
[1721049645543,0.12,63003.0,62998.0,0.16179753]
[1721049645917,0.12,63001.0,62996.0,0.00306353]
[1721049646081,0.158722,63003.0,62997.0,0.158737]
[1721049646282,0.317449,63003.0,63002.0,0.00868391]
[1721049646538,0.872016,63003.0,63002.0,0.00868391]
[1721049647702,1.389461,63003.0,63002.0,0.00868391]
[1721049647901,1.189461,63003.0,63002.0,0.00868391]
[1721049648591,1.389461,63003.0,63002.0,0.00868391]
[1721049648824,1.973506,63003.0,63002.0,0.00968391]
[1721049648970,0.15877,62984.0,62979.0,0.00306353]
[1721049649172,0.31753,62986.0,62979.0,0.00306353]
[1721049649173,0.158776,62982.0,62980.0,0.13191023]
[1721049649376,0.457739,62985.0,62979.0,0.00306353]
[1721049649377,0.1402,62985.0,62979.0,0.00306353]
[1721049649584,0.1402,62985.0,62973.0,0.158798]
[1721049649585,0.158781,62980.0,62973.0,0.158798]
[1721049649791,0.158781,62980.0,62974.0,0.13191889]
[1721049649792,0.158785,62978.0,62974.0,0.13191889]
[1721049649982,0.158785,62978.0,62970.0,0.00306353]
[1721049649983,0.15879,62976.0,62975.0,0.13191889]
[1721049650159,0.15879,62976.0,62964.0,0.08105238]
[1721049650160,0.158794,62975.0,62967.0,0.158813]
[1721049650538,0.317581,62976.0,62968.0,0.29073627]
[1721049650539,0.15879,62976.0,62968.0,0.29073627]
[1721049650741,0.15879,62976.0,62969.0,0.13192727]
[1721049650961,0.158796,62974.0,62970.0,0.13192727]
[1721049651157,0.317572,62978.0,62971.0,0.13192727]
[1721049651158,0.158793,62975.0,62971.0,0.13192727]
[1721049651364,0.158793,62975.0,62972.0,0.13192727]
[1721049651585,0.2,62982.0,62968.0,0.15881]
[1721049651586,0.141,62993.0,62983.0,0.317543]
[1721049651789,0.317458,63001.0,62985.0,0.08105238]
[1721049651790,0.141,63001.0,62985.0,0.08105238]
[1721049651991,0.141,63001.0,62992.0,0.158749]
[1721049652199,0.158734,62999.0,62993.0,0.13192727]
[1721049652408,0.141,63001.0,62997.0,0.158736]
[1721049652612,0.299728,63001.0,62993.0,0.158746]
[1721049652810,0.141,63001.0,62994.0,0.13494805]
[1721049653010,0.141,63001.0,62995.0,0.13188452]
[1721049653011,0.158732,62999.0,62995.0,0.13188452]
[1721049653214,0.158732,62999.0,62994.0,0.00306353]
[1721049653215,0.158732,62999.0,62996.0,0.13188452]
[1721049653362,0.158732,62999.0,62997.0,0.13188452]
[1721049653565,0.158732,62999.0,62993.0,0.158747]
[1721049653566,0.158732,62999.0,62998.0,0.13188144]
[1721049655433,0.16517862,62999.0,62998.0,0.13188144]
[1721049656059,0.17217862,62999.0,62998.0,0.13188144]
[1721049656662,0.17217862,62999.0,62998.0,0.1318856]
[1721049657088,0.016,62999.0,62998.0,0.13187167]
[1721049657293,0.016,62999.0,62998.0,0.72807666]
[1721049657671,0.1422,63016.0,63008.0,0.15871]
[1721049657826,0.1422,63016.0,63007.0,0.317423]
[1721049657827,0.30089,63016.0,63009.0,0.13187167]
[1721049658151,0.30089,63016.0,63010.0,0.13187167]
[1721049658381,0.30089,63016.0,63015.0,0.158692]
[1721049658382,0.1422,63016.0,63015.0,0.158692]
[1721049658568,0.0821,63016.0,63015.0,0.28456367]
[1721049658774,0.219274,63022.0,63016.0,0.158689]
[1721049658992,0.138,63039.0,63018.0,0.63356668]
[1721049659197,0.138,63047.0,63027.0,0.11999999]
[1721049659399,0.138,63047.0,63038.0,0.317268]
[1721049659400,0.158615,63046.0,63038.0,0.317268]
[1721049659594,0.138,63047.0,63039.0,0.13187167]
[1721049659897,0.138,63047.0,63030.0,0.317307]
[1721049659898,0.138,63047.0,63040.0,0.29042142]
[1721049660102,0.138,63047.0,63041.0,0.44904242]
[1721049660236,0.0619,63053.0,63043.0,0.11999999]
[1721049660435,0.0619,63053.0,63031.0,0.4863143]
[1721049660436,0.0619,63053.0,63034.0,0.13896335]
[1721049660827,0.317211,63050.0,63033.0,0.01896336]
[1721049661041,0.08105238,63052.0,63031.0,0.317299]
[1721049661042,0.31724,63044.0,63031.0,0.317299]
[1721049661247,0.2,63048.0,63028.0,0.01896336]
[1721049661248,0.014,63039.0,63028.0,0.317319]
[1721049661450,0.014,63039.0,63034.0,0.317288]
[1721049661655,0.001,63049.0,63027.0,0.13896335]
[1721049661656,0.001,63049.0,63027.0,0.01896336]
[1721049661852,0.001,63049.0,63022.0,0.1]
[1721049661853,0.158633,63039.0,63022.0,0.1]
[1721049662068,0.158633,63039.0,63018.0,0.13643019]
[1721049662069,0.08105238,63038.0,63018.0,0.04682013]
[1721049662243,0.158656,63030.0,63015.0,0.0189665]
[1721049662440,0.317297,63033.0,63023.0,0.158671]
[1721049662666,0.08105238,63038.0,63015.0,0.16211791]
[1721049662844,0.158662,63027.0,63019.0,0.15868]
[1721049663043,0.158657,63029.0,63018.0,0.317368]
[1721049663250,0.317303,63032.0,63022.0,0.158672]
[1721049663251,0.158655,63030.0,63022.0,0.158672]
[1721049663536,0.158655,63030.0,63018.0,0.317368]
[1721049663537,0.158666,63026.0,63018.0,0.158684]
[1721049663738,0.2819,63036.0,63013.0,0.317392]
[1721049663739,0.317319,63028.0,63013.0,0.317392]
[1721049663896,0.2,63032.0,63007.0,0.11999999]
[1721049664097,0.2,63032.0,63006.0,0.38337247]
[1721049664098,0.158672,63023.0,63010.0,0.317406]
[1721049664320,0.1,63034.0,63010.0,0.317406]
[1721049664321,0.15863,63040.0,63032.0,0.158648]
[1721049664520,0.1445,63043.0,63027.0,0.11999999]
[1721049664720,0.158629,63040.0,63033.0,0.158645]
[1721049665243,0.31725,63042.0,63032.0,0.158649]
[1721049665244,0.159632,63039.0,63032.0,0.158649]
[1721049665380,0.159632,63039.0,63033.0,0.158646]
[1721049665381,0.158632,63039.0,63033.0,0.158646]
[1721049665581,0.31725,63042.0,63033.0,0.158646]
[1721049665844,0.31725,63042.0,63031.0,0.317302]
[1721049666043,0.158628,63041.0,63034.0,0.158643]
[1721049666266,0.082,63043.0,63029.0,0.08105238]
[1721049666474,0.082,63043.0,63024.0,0.381535]
[1721049666475,0.082,63043.0,63030.0,0.3051179]
[1721049666683,0.381516,63049.0,63032.0,0.11999999]
[1721049666684,0.0643,63049.0,63032.0,0.11999999]
[1721049666811,0.0643,63049.0,63044.0,0.158618]
[1721049667005,0.31722,63048.0,63037.0,0.317273]
[1721049667238,0.0643,63049.0,63031.0,0.11999999]
[1721049667239,0.0643,63049.0,63036.0,0.317277]
[1721049667444,0.0643,63049.0,63042.0,0.158622]
[1721049667647,0.001,63049.0,63048.0,0.793045]
[1721049667847,0.001,63049.0,63048.0,1.133263]
[1721049668250,0.00833,63059.0,63048.0,1.133263]
[1721049668251,0.00832,63067.0,63066.0,0.11999999]
[1721049668451,0.00832,63067.0,63066.0,0.475692]
[1721049668884,0.00832,63067.0,63066.0,0.79282]
[1721049669252,0.00832,63067.0,63066.0,1.0749379]
[1721049669586,0.00832,63067.0,63066.0,1.29706591]
[1721049669787,0.00832,63067.0,63066.0,0.79482]
[1721049669918,0.00832,63067.0,63066.0,0.475692]
[1721049670113,0.00832,63067.0,63066.0,0.80182]
[1721049670552,0.00832,63067.0,63066.0,0.79282]
[1721049671010,0.16685,63080.0,63073.0,0.158546]
[1721049671011,0.166269,63080.0,63073.0,0.158546]
[1721049671564,0.166269,63080.0,63072.0,0.158547]
[1721049671565,0.00774,63080.0,63072.0,0.158547]
[1721049671772,0.00774,63080.0,63073.0,0.158546]
[1721049672049,0.00774,63080.0,63069.0,0.317108]
[1721049672182,0.00774,63080.0,63079.0,0.158531]
[1721049672392,0.00774,63080.0,63075.0,0.317079]
[1721049672575,0.00874,63080.0,63075.0,0.317079]
[1721049672775,0.00874,63080.0,63070.0,0.16211791]
[1721049672979,0.00774,63080.0,63076.0,0.158537]
[1721049673281,0.00774,63080.0,63079.0,0.158531]
[1721049673504,0.00774,63080.0,63074.0,0.317084]
[1721049673702,0.00774,63080.0,63075.0,0.158539]
[1721049673927,0.00774,63080.0,63074.0,0.158543]
[1721049674711,0.00774,63080.0,63073.0,0.158544]
[1721049674912,0.00774,63080.0,63074.0,0.158541]
[1721049675109,0.00974,63080.0,63074.0,0.158541]
[1721049675679,0.00774,63080.0,63075.0,0.001]
[1721049675809,0.00974,63080.0,63075.0,0.001]
[1721049676013,0.00974,63080.0,63068.0,0.43711299]
[1721049676214,0.00974,63080.0,63076.0,0.158538]
[1721049676560,0.00974,63080.0,63069.0,0.00306353]
[1721049676561,0.00774,63080.0,63071.0,0.317099]
[1721049676796,0.00974,63080.0,63071.0,0.317099]
[1721049676977,0.00974,63080.0,63066.0,0.317125]
[1721049676978,0.00974,63080.0,63073.0,0.158544]
[1721049677177,0.00974,63080.0,63066.0,0.43712499]
[1721049677178,0.00974,63080.0,63066.0,0.317125]
[1721049677349,0.00974,63080.0,63074.0,0.158542]
[1721049677931,0.08105238,63078.0,63065.0,0.317131]
[1721049678158,0.08105238,63078.0,63057.0,0.00306353]
[1721049678159,0.08105238,63071.0,63057.0,0.00306353]
[1721049678356,0.08105238,63071.0,63059.0,0.158579]
[1721049678357,0.0776,63065.0,63059.0,0.158579]
[1721049678573,0.0776,63065.0,63050.0,0.317205]
[1721049678574,0.0776,63065.0,63050.0,0.16211791]
[1721049678766,0.08105238,63064.0,63047.0,0.11999999]
[1721049678965,0.08105238,63064.0,63040.0,0.06466353]
[1721049678966,0.2,63063.0,63040.0,0.06466353]
[1721049679143,0.31716,63060.0,63051.0,0.1586]
[1721049679344,0.0776,63065.0,63058.0,0.158583]
[1721049679548,0.0776,63065.0,63053.0,0.00317173]
[1721049679745,0.0776,63065.0,63059.0,0.011]
[1721049679945,0.0776,63065.0,63061.0,0.158576]
[1721049680353,0.0776,63065.0,63059.0,0.011]
[1721049680555,0.0776,63065.0,63060.0,0.475734]
[1721049680758,0.0776,63065.0,63054.0,0.16211791]
[1721049680956,0.0776,63065.0,63055.0,0.15859]
[1721049680957,0.158572,63063.0,63055.0,0.15859]
[1721049681158,0.0776,63065.0,63059.0,0.317159]
[1721049681385,0.236167,63065.0,63054.0,0.317183]
[1721049681558,0.004,63060.0,63055.0,0.1]
[1721049681977,0.0786,63065.0,63059.0,0.001]
[1721049682346,0.0846,63065.0,63060.0,0.158578]
[1721049682493,0.0846,63065.0,63059.0,0.318158]
[1721049682494,0.0846,63065.0,63059.0,0.159581]
[1721049682896,0.0846,63065.0,63059.0,0.001]
[1721049683099,0.0846,63065.0,63042.0,0.2821179]
[1721049683100,0.08105238,63063.0,63042.0,0.2821179]
[1721049683422,0.2,63064.0,63059.0,0.001]
[1721049683423,0.784895,63060.0,63059.0,0.001]
[1721049683624,0.467737,63060.0,63059.0,0.001]
[1721049684075,0.14545238,63070.0,63059.0,0.001]
[1721049684076,0.0753,63068.0,63059.0,0.001]
[1721049684199,0.158573,63063.0,63059.0,0.001]
[1721049684393,0.158575,63062.0,63059.0,0.001]
[1721049685045,0.317133,63065.0,63047.0,0.11999999]
[1721049685256,0.0753,63068.0,63053.0,0.11999999]
[1721049685257,0.317128,63066.0,63053.0,0.11999999]
[1721049685433,0.158588,63057.0,63053.0,0.11999999]
[1721049685603,0.006,63063.0,63053.0,0.11999999]
[1721049685804,0.158571,63063.0,63057.0,0.158586]
[1721049686057,0.158568,63065.0,63059.0,0.001]
[1721049686257,0.317092,63074.0,63058.0,0.06417164]
[1721049686453,0.0778,63076.0,63058.0,0.06417164]
[1721049686454,0.0778,63076.0,63067.0,0.11999999]
[1721049686656,0.158541,63075.0,63067.0,0.11999999]
[1721049686857,0.158541,63075.0,63068.0,0.158558]
[1721049687031,0.0778,63076.0,63067.0,0.11999999]
[1721049687233,0.0778,63076.0,63075.0,0.317082]
[1721049687465,0.00774,63080.0,63074.0,0.11999999]
[1721049687466,0.00774,63080.0,63074.0,0.158543]
[1721049687864,0.00774,63080.0,63075.0,0.15854]
[1721049688287,0.00774,63080.0,63076.0,0.158538]
[1721049688607,0.00774,63080.0,63076.0,0.158537]
[1721049688812,0.00774,63080.0,63074.0,0.317086]
[1721049688813,0.00974,63080.0,63079.0,0.59559299]
[1721049689014,0.00974,63080.0,63079.0,0.575593]
[1721049689207,0.00774,63080.0,63079.0,0.1]
[1721049689551,0.00874,63080.0,63079.0,0.258531]
[1721049689962,0.00774,63080.0,63079.0,0.575593]
[1721049690255,0.00774,63080.0,63079.0,1.8888969]
[1721049690459,0.001,63080.0,63079.0,1.9760969]
[1721049690659,0.001,63080.0,63079.0,2.10776601]
[1721049690861,0.001,63080.0,63079.0,1.98776602]
[1721049691063,0.001,63080.0,63079.0,2.10776601]
[1721049691291,0.001,63080.0,63079.0,2.21076601]
[1721049691495,0.001,63080.0,63079.0,2.27076601]
[1721049691703,6.215e-05,63085.0,63084.0,0.1]
[1721049691901,6.215e-05,63085.0,63084.0,0.69836854]
[1721049692103,6.215e-05,63085.0,63084.0,1.01540554]
[1721049692276,6.215e-05,63085.0,63084.0,1.74947954]
[1721049692505,6.215e-05,63085.0,63084.0,2.18494459]
[1721049692677,6.215e-05,63085.0,63084.0,1.94389221]
[1721049693033,6.215e-05,63085.0,63084.0,1.96281842]
[1721049693234,6.215e-05,63085.0,63084.0,1.74641601]
[1721049693460,6.215e-05,63085.0,63084.0,1.22337902]
[1721049693636,6.215e-05,63085.0,63084.0,1.1977099]
[1721049693861,6.215e-05,63085.0,63084.0,1.64641822]
[1721049694875,6.215e-05,63085.0,63084.0,1.66041822]
[1721049695699,6.215e-05,63085.0,63084.0,1.64641822]
[1721049695903,6.215e-05,63085.0,63084.0,1.66041822]
[1721049696108,6.215e-05,63085.0,63084.0,1.67441822]
[1721049696321,6.215e-05,63085.0,63084.0,1.66041822]
[1721049696520,0.15857815,63085.0,63084.0,0.13167132]
[1721049696720,0.15857815,63085.0,63084.0,0.014]
[1721049696721,6.215e-05,63085.0,63084.0,0.014]
[1721049697126,6.215e-05,63085.0,63070.0,0.317102]
[1721049697127,0.158527,63081.0,63070.0,0.317102]
[1721049697399,0.158527,63081.0,63074.0,0.158543]
[1721049697567,0.158527,63081.0,63075.0,0.13170384]
[1721049697767,0.158527,63081.0,63076.0,0.13170384]
[1721049697768,0.317053,63081.0,63076.0,0.13170384]
[1721049697999,0.317067,63078.0,63077.0,0.13170384]
[1721049698125,0.20006215,63085.0,63065.0,0.158566]
[1721049698126,0.158548,63073.0,63065.0,0.158566]
[1721049698311,0.158548,63073.0,63064.0,0.00306353]
[1721049698312,0.1462,63081.0,63066.0,0.13171561]
[1721049698689,0.1462,63081.0,63060.0,0.317156]
[1721049698690,0.158557,63069.0,63067.0,0.13171561]
[1721049698897,0.158557,63069.0,63068.0,0.13171561]
[1721049699289,0.158556,63069.0,63068.0,0.13171561]
[1721049699492,0.475669,63069.0,63068.0,0.13171561]
[1721049699693,0.2,63086.0,63069.0,0.00306353]
[1721049699896,0.2,63083.0,63070.0,0.13172172]
[1721049700149,0.2,63078.0,63071.0,0.13172172]
[1721049700356,0.2,63078.0,63066.0,0.004]
[1721049700357,0.28105238,63077.0,63066.0,0.004]
[1721049700560,0.475684,63067.0,63066.0,0.004]
[1721049700670,0.475684,63067.0,63066.0,0.13573313]
[1721049701045,0.2819,63072.0,63059.0,0.00306353]
[1721049701046,0.317135,63065.0,63059.0,0.00306353]
[1721049701319,0.233878,63061.0,63060.0,0.1317362]
[1721049701540,0.233878,63061.0,63054.0,0.16518144]
[1721049701541,0.475774,63055.0,63054.0,0.00306353]
[1721049701745,0.317165,63059.0,63040.0,0.4863143]
[1721049701951,0.15858,63060.0,63052.0,0.158599]
[1721049702130,0.0753,63061.0,63053.0,0.13482553]
[1721049702326,0.158582,63059.0,63054.0,0.131762]
[1721049702531,0.158582,63059.0,63053.0,0.00306353]
[1721049702532,0.392454,63061.0,63055.0,0.131762]
[1721049702749,0.158586,63058.0,63056.0,0.131762]
[1721049702950,0.158586,63058.0,63054.0,0.001]
[1721049703196,0.0753,63061.0,63055.0,0.13175365]
[1721049703331,0.4819,63074.0,63055.0,0.13175365]
[1721049703332,0.1485,63080.0,63059.0,0.11999999]
[1721049703535,0.1485,63080.0,63057.0,0.15635238]
[1721049703536,0.158544,63074.0,63067.0,0.15856]
[1721049703966,0.158544,63074.0,63060.0,0.00306353]
[1721049703967,0.1,63072.0,63060.0,0.00306353]
[1721049704193,0.1,63072.0,63056.0,0.00306353]
[1721049704194,0.475719,63063.0,63056.0,0.00306353]
[1721049704344,0.317146,63063.0,63057.0,0.13174866]
[1721049704551,0.31715,63062.0,63056.0,0.00306353]
[1721049704756,0.31715,63062.0,63051.0,0.16166253]
[1721049704757,0.317158,63060.0,63051.0,0.16166253]
[1721049704981,0.158584,63058.0,63052.0,0.13175665]
[1721049705208,0.158584,63058.0,63051.0,0.16166453]
[1721049705209,0.158584,63058.0,63056.0,0.007]
[1721049705416,0.317194,63053.0,63041.0,0.07906847]
[1721049705619,0.158598,63053.0,63045.0,0.158615]
[1721049705825,0.158598,63053.0,63046.0,0.13492831]
[1721049706046,0.158598,63053.0,63047.0,0.13176087]
[1721049706269,0.158606,63049.0,63048.0,0.13176087]
[1721049706515,0.1491,63057.0,63040.0,0.158628]
[1721049706516,0.158612,63047.0,63040.0,0.158628]
[1721049706702,0.158612,63047.0,63041.0,0.13177805]
[1721049706903,0.158612,63047.0,63040.0,0.158628]
[1721049706904,0.31721,63050.0,63042.0,0.13177805]
[1721049707081,0.15861,63048.0,63039.0,0.27862899]
[1721049707287,0.15861,63048.0,63040.0,0.29039977]
[1721049707447,0.15861,63048.0,63032.0,0.317298]
[1721049707448,0.158621,63044.0,63041.0,0.00306353]